Cogmind - Beta 12 @@@ ROGUE MODE // 2023.04.20 @ 15:22:23 Player: btmk16 Result: Destroyed by X-57 Shotgunner with Shotgun Performance ------------- Evolutions (3) 1500 Regions Visited (8) 1600 Robots Destroyed (148) 740 Value Destroyed (4464) 4464 Prototype IDs (10) 200 Alien Tech Used (0) 0 Bonus (147) 147 TOTAL SCORE: 8651 Bonus ------- High Alert Combat Kills 91 Follower Combat Kills 56 Cogmind --------- Core Integrity 0/700 Matter 50/300 Energy 90/100 System Corruption 11% Temperature Cool (36) Movement Core (50) Location -7/Factory Parts ------- > --- POWER (1) -------- (None) > --- PROPULSION (4) --- (None) > --- UTILITY (6) ------ (None) > --- WEAPON (2) ------- (None) > --- INVENTORY (5) ---- Experimental Sensor Array Light Armor Plating Particle Cannon Autogun Enhanced Autogun Peak State ------------ > --- POWER ------------ Improved Deuterium Engine > --- PROPULSION ------- Light Treads Light Treads Light Treads Medium Treads > --- UTILITY ---------- Improved Heat Sink Improved Heat Sink Huge Storage Unit Light Armor Plating Improved Light Armor Plating Shield Generator > --- WEAPON ----------- Enhanced Autogun Enhanced Autogun > --- INVENTORY -------- Light Treads Light Treads Light Treads Light Treads Improved Treads VTOL Module Improved Heat Sink Experimental Sensor Array Light Armor Plating Light Armor Plating Light Armor Plating Improved Light Armor Plating Hacking Suite Particle Cannon Autogun Autogun Autogun Improved Assault Rifle Improved Assault Rifle Rocket Launcher Missile Launcher Missile Launcher Missile Launcher Plasma Cutter Makeshift Axe [Rating: 38] Favorites ----------- Power Cooled Ion Engine Engine Cooled Ion Engine Propulsion Improved Treads Treads Improved Treads Leg Aluminum Leg Wheel Compact Wheel Utility Improved Heat Sink Device Improved Heat Sink Storage Huge Storage Unit Hackware Hacking Suite Protection Light Armor Plating Weapon Advanced Beam Cannon Energy Gun Particle Gun Energy Cannon Advanced Beam Cannon Ballistic Gun Enhanced Autogun Launcher Missile Launcher Build | -11 -10 -10 -9 -9 -9 -8 -8 -7 ------- Run | Jun Mat Min Mat Min Exi Min Mat Fac Slots Evolved 6 | . . . 2 . . . 2 2 Power . | . . . . . . . . . Propulsion 2 | . . . 1 . . . 1 . Utility 4 | . . . 1 . . . 1 2 Weapon . | . . . . . . . . . Parts Attached 95 | 8 13 4 19 1 . 3 26 21 Power 7 | 1 . . 2 . . . 3 1 Engine 7 | 1 . . 2 . . . 3 1 Core . | . . . . . . . . . Reactor . | . . . . . . . . . Propulsion 28 | 2 5 2 3 . . 1 9 6 Treads 21 | . . 2 3 . . 1 9 6 Leg 5 | 2 3 . . . . . . . Wheel 2 | . 2 . . . . . . . Hover . | . . . . . . . . . Flight . | . . . . . . . . . Utility 29 | 2 2 1 8 1 . 2 5 8 Device 10 | 1 . 1 1 . . 1 4 2 Storage 4 | 1 1 . 2 . . . . . Processor . | . . . . . . . . . Hackware 2 | . . . . . . . . 2 Protection 13 | . 1 . 5 1 . 1 1 4 Artifact . | . . . . . . . . . Weapon 31 | 3 6 1 6 . . . 9 6 Energy Gun 8 | 2 3 1 1 . . . 1 . Energy Cannon 5 | . . . 2 . . . 3 . Ballistic Gun 7 | 1 2 . 1 . . . 2 1 Ballistic Cannon . | . . . . . . . . . Launcher 11 | . 1 . 2 . . . 3 5 Special Weapon . | . . . . . . . . . Impact Weapon . | . . . . . . . . . Slashing Weapon . | . . . . . . . . . Piercing Weapon . | . . . . . . . . . Special Melee Weapon . | . . . . . . . . . Unidentified Prototypes 5 | . . . 3 . . . 2 . Parts Lost 27 | . 1 . 5 . . 2 3 16 Power 3 | . . . 1 . . . 1 1 Propulsion 8 | . . . 1 . . 1 1 5 Utility 9 | . . . 1 . . 1 1 6 Weapon 7 | . 1 . 2 . . . . 4 Highest Loss Streak 15 | . 1 . 2 . . 1 2 15 To Critical Strikes 1 | . . . . . . . . 1 Average Slot Usage (%) 99 | . 99 100 99 100 100 99 98 92 Engine 11 | . 14 14 10 11 11 11 8 6 Treads 27 | . . 24 32 33 33 32 35 29 Leg 3 | . 25 . . . . . . . Device 11 | . 2 13 11 11 11 11 17 15 Storage 11 | . 14 14 11 11 11 11 9 6 Protection 9 | . 11 . 10 11 11 10 9 11 Energy Gun 4 | . 3 27 1 . . . . . Energy Cannon 12 | . . . 19 22 22 22 11 . Ballistic Gun 4 | . 23 . . . . . 6 14 Naked Turns 3 | . . . . . . . . 3 Heaviest Build 110 | 14 35 35 100 104 104 104 101 110 Greatest Support 88 | 20 32 46 69 66 66 66 83 88 Greatest Overweight (x) 2 | . 2 1 1 1 1 1 1 1 Average Overweight (x) . | . . . . 1 1 1 1 . Largest Inventory Capacity 25 | 8 15 15 25 25 25 25 25 25 Average Capacity 20 | 7 13 15 18 25 25 25 25 24 Most Carried 25 | 6 15 15 25 25 25 25 25 25 Average Carried 20 | 4 12 15 17 24 25 24 24 24 Final Capacity 25 | 8 15 15 25 25 25 25 25 5 Final Carried 25 | 6 15 15 25 25 25 24 25 5 Class Distribution -------------------- 84% | Mutant 15% | Scavenger-Mutant Dominant Class ---------------- Mutant | -10/Materials Mutant | -10/Mines Mutant | -9/Materials Mutant | -9/Mines Mutant | -9/Exiles Mutant | -8/Mines Scavenger-Mutant | -8/Materials Scavenger-Mutant | -7/Factory Resources | -11 -10 -10 -9 -9 -9 -8 -8 -7 ----------- Run | Jun Mat Min Mat Min Exi Min Mat Fac Matter Collected 2094 | 304 337 120 280 . . 30 567 456 Remotely . | . . . . . . . . . Salvage Created 5854 | 177 433 559 2256 . . 411 1258 760 Parts 299 | 9 26 26 115 . . 17 61 45 Haulers Intercepted 11 | . 1 . 6 . . . 2 2 Recyclers Shooed 7 | . 1 . 6 . . . . . Parts Field Recycled . | . . . . . . . . . Retrieved Matter . | . . . . . . . . . Parts Self-Destructed . | . . . . . . . . . Prevented . | . . . . . . . . . Kills | -11 -10 -10 -9 -9 -9 -8 -8 -7 ------- Run | Jun Mat Min Mat Min Exi Min Mat Fac Combat Hostiles Destroyed 102 | . 9 12 31 . . 8 29 13 Guns 37 | . 9 9 1 . . . 10 8 Cannons 41 | . . . 22 . . 8 11 . AOE 22 | . . 3 7 . . . 7 5 Classes Destroyed 16 | 3 3 . 4 . . 1 1 4 Worker 8 | 2 1 . 2 . . 1 . 2 Builder 2 | . . . . . . . 2 . Tunneler 4 | 3 . 1 . . . . . . Hauler 11 | . 1 . 6 . . . 2 2 Recycler 13 | 1 1 2 9 . . . . . Mechanic 1 | . . . . . . . . 1 Operator 3 | . . . 1 . . . 1 1 Watcher 4 | . . . 3 . . . 1 . Swarmer 13 | . 3 3 3 . . . 4 . Grunt 64 | . 6 9 17 . . 7 20 5 Brawler 3 | . . . 1 . . . 2 . Duelist 2 | . . . . . . 1 1 . Protector 1 | . . . . . . . . 1 Sentry 15 | . . . 10 . . . 2 3 Specialist 1 | . . . . . . . . 1 Programmer 3 | . . . . . . . . 3 Best Kill Streak 10 | 5 3 4 7 . . 3 7 10 Combat Bots Only 5 | . 3 4 5 . . 3 5 3 Max Kills in Single Turn 3 | 1 1 2 3 . . 1 3 2 Gunslinging . | . . . . . . . . . Exploded 3 | . . 2 2 . . . 3 2 Melee . | . . . . . . . . . Uniques/NPCs Destroyed . | . . . . . . . . . Combat | -11 -10 -10 -9 -9 -9 -8 -8 -7 -------- Run | Jun Mat Min Mat Min Exi Min Mat Fac Damage Taken 5585 | . 332 305 928 . . 458 1008 2554 Core 1081 | . 56 79 39 . . 33 171 703 Absorbed by Shields 358 | . . . . . . . . 358 Core Remaining (%) 74 | 100 . 46 . . . 82 68 . Volleys Fired 356 | 24 36 37 90 1 . 27 78 63 Largest 2 | 2 2 2 2 2 . 2 2 2 Hottest 136 | 70 130 130 136 136 . 136 136 72 Shots Fired 687 | 48 72 74 162 2 . 54 153 122 Gun 391 | 48 72 72 28 . . . 57 114 Cannon 272 | . . . 128 2 . 54 88 . Launcher 24 | . . 2 6 . . . 8 8 Special . | . . . . . . . . . Kinetic 268 | 24 58 . 15 . . . 57 114 Thermal 390 | 24 9 72 141 2 . 54 88 . Explosive 24 | . . 2 6 . . . 8 8 Electromagnetic 5 | . 5 . . . . . . . Robot Hit Streak 14 | 8 8 14 14 3 . 10 14 11 Robot Miss Streak 7 | 4 7 4 4 . . 3 3 4 Penetration Max . | . . . . . . . . . Secondary Targets 3 | . 1 1 . . . . . 1 Max Gunslinging Chain 1 | . 1 1 . . . . . 1 Shots Hit Robots 441 | 30 45 41 99 2 . 37 108 79 Core Hits 245 | 10 23 22 65 . . 17 64 44 Critical Kills 3 | . . . 2 . . . 1 . Critical Parts Destroyed . | . . . . . . . . . Critical Strikes 7 | 1 1 2 2 . . . 1 . Burn 4 | 1 1 2 . . . . . . Meltdown 3 | . . . 2 . . . 1 . Melee Attacks . | . . . . . . . . . Impact . | . . . . . . . . . Slashing . | . . . . . . . . . Piercing . | . . . . . . . . . Sneak Attacks . | . . . . . . . . . Combat Hostiles . | . . . . . . . . . Follow-up Attacks . | . . . . . . . . . Damage Inflicted 11127 | 315 583 793 2769 41 . 792 3216 2618 Guns 3767 | 315 583 633 184 . . . 709 1343 Cannons 4141 | . . . 1888 41 . 782 1430 . Explosions 3209 | . . 160 697 . . . 1077 1275 Melee . | . . . . . . . . . Ramming 10 | . . . . . . 10 . . Kinetic 2706 | 105 451 . 98 . . . 709 1343 Thermal 5146 | 210 76 633 1974 41 . 782 1430 . Explosive 3137 | . . 160 697 . . . 1077 1203 Electromagnetic 128 | . 56 . . . . . . 72 Impact . | . . . . . . . . . Slashing . | . . . . . . . . . Piercing . | . . . . . . . . . Highest Corruption 11 | . 4 4 . . . . 5 11 Average Corruption 3 | . 2 4 . . . . 5 4 Corruption Purged . | . . . . . . . . . Corruption Blocked . | . . . . . . . . . Effects 54 | . 8 28 . . . . 9 9 Message Errors 9 | . 1 5 . . . . 1 2 Matter Fused 13 | . 4 7 . . . . 1 1 Heat Flow Errors 5 | . 2 2 . . . . . 1 Energy Discharges 5 | . . 3 . . . . 2 . Parts Rejected 2 | . . . . . . . 1 1 Parts Fused 2 | . . 2 . . . . . . Data Loss (minor) 8 | . 1 3 . . . . 3 1 Data Loss (major) 2 | . . 1 . . . . . 1 Misfires 5 | . . 2 . . . . 1 2 Alerts 3 | . . 3 . . . . . . Overload Shots . | . . . . . . . . . Overflow Damage 60 | . . . 16 . . . 44 . Projectiles 49 | . . . 16 . . . 33 . Explosions 11 | . . . . . . . 11 . Melee . | . . . . . . . . . Knockbacks . | . . . . . . . . . Impact . | . . . . . . . . . Kinetic . | . . . . . . . . . Secondary . | . . . . . . . . . Self-Inflicted Damage 102 | . . . 45 . . . . 57 Shots 9 | . . . 6 . . . . 3 Rammed 1 | . . . . . . 1 . . Targets Rammed 2 | . . . . . . 2 . . Kicked . | . . . . . . . . . Crushed 1 | . . . . . . 1 . . Highest Temperature 396 | 320 235 335 207 27 . 396 93 137 Average Temperature 88 | 154 95 115 55 18 . 129 17 27 Received Heat Transfer 1995 | . 165 168 345 . . 243 549 525 Effects 2 | . . 1 . . . 1 . . Shutdowns 1 | . . . . . . 1 . . Energy Bleed 1 | . . 1 . . . . . . Siege Activations . | . . . . . . . . . Robots Corrupted . | . . . . . . . . . Combat Hostiles . | . . . . . . . . . Parts Fried . | . . . . . . . . . Impact Corruptions . | . . . . . . . . . Robots Melted 3 | . . . 2 . . . 1 . Combat Hostiles 2 | . . . 1 . . . 1 . Parts Melted 21 | 2 . 3 9 . . 1 6 . Heat Transferred 10286 | 703 296 1702 3552 74 . 1406 2553 . Parts Sabotaged . | . . . . . . . . . Parts Stolen . | . . . . . . . . . Parts Stripped . | . . . . . . . . . Power Chain Reactions . | . . . . . . . . . Missiles Intercepted . | . . . . . . . . . Alert | -11 -10 -10 -9 -9 -9 -8 -8 -7 ------- Run | Jun Mat Min Mat Min Exi Min Mat Fac Peak Influence 541 | 30 147 188 461 157 . 104 541 250 Initial 175 | . 19 17 1 157 . . 35 175 Average 136 | 12 43 52 312 36 . 37 302 174 Maximum Alert Level 2 | . . . 2 . . . 2 1 Low Security (%) 72 | 100 100 100 13 100 . 100 28 78 Level 1 19 | . . . 57 . . . 50 21 Level 2 8 | . . . 28 . . . 21 . Level 3 . | . . . . . . . . . Level 4 . | . . . . . . . . . Level 5 . | . . . . . . . . . High Security . | . . . . . . . . . Max Security . | . . . . . . . . . Squads Dispatched 17 | . 1 . 3 . . 1 6 6 Investigation 3 | . 1 . 1 . . . 1 . Extermination 2 | . . . . . . . . 2 Reinforcement 9 | . . . 2 . . 1 2 4 Assault . | . . . . . . . . . Garrison 3 | . . . . . . . 3 . Intercept . | . . . . . . . . . Searches Triggered . | . . . . . . . . . Construction Impeded 2 | . . . . . . 1 . 1 Haulers Reinforced 2 | . . . . . . . . 2 Active Scanning Responses . | . . . . . . . . . Cargo Convoy Interrupts 1 | . . . . . . . . 1 Stealth | -11 -10 -10 -9 -9 -9 -8 -8 -7 --------- Run | Jun Mat Min Mat Min Exi Min Mat Fac Distress Signals 7 | . . 1 4 . . . 1 1 Communications Jammed . | . . . . . . . . . Distress Signals . | . . . . . . . . . Times Spotted 161 | . 19 10 46 . . 16 38 32 Peak Tracking Total 16 | . 4 2 6 . . 4 8 16 Tactical Retreats 3 | . 1 . . . . . 2 . Traps | -11 -10 -10 -9 -9 -9 -8 -8 -7 ------- Run | Jun Mat Min Mat Min Exi Min Mat Fac Traps Triggered 6 | . 3 . 1 . . . . 2 Indirectly . | . . . . . . . . . Trap Hack Attempts . | . . . . . . . . . Triggered . | . . . . . . . . . Disarmed . | . . . . . . . . . Reprogrammed . | . . . . . . . . . Reused . | . . . . . . . . . Traps Extracted . | . . . . . . . . . Installed . | . . . . . . . . . Triggered . | . . . . . . . . . Machines | -11 -10 -10 -9 -9 -9 -8 -8 -7 ---------- Run | Jun Mat Min Mat Min Exi Min Mat Fac Machines Disabled 14 | . . . 4 . . . 3 7 Max in Single Turn 4 | . . . 1 . . . 1 4 Machines Repaired . | . . . . . . . . . Machines Sabotaged . | . . . . . . . . . Overloaded Fab Kills . | . . . . . . . . . Hacking | -11 -10 -10 -9 -9 -9 -8 -8 -7 --------- Run | Jun Mat Min Mat Min Exi Min Mat Fac Machines Accessed 19 | . 6 . 6 . 1 2 2 2 Terminals 18 | . 6 . 6 . . 2 2 2 Fabricators . | . . . . . . . . . Repair Stations . | . . . . . . . . . Recycling Units . | . . . . . . . . . Scanalyzers . | . . . . . . . . . Garrison Access . | . . . . . . . . . Total Hacks 42 | . 11 . 14 . 1 4 5 7 Successful 23 | . 8 . 6 . 1 2 3 3 Failed 18 | . 3 . 7 . . 2 2 4 Catastrophic 2 | . . . . . . 1 . 1 Database Lockouts 1 | . . . 1 . . . . . Manual 19 | . 3 . 9 . . 2 1 4 Terminals 41 | . 11 . 14 . . 4 5 7 Fabricators . | . . . . . . . . . Repair Stations . | . . . . . . . . . Recycling Units . | . . . . . . . . . Scanalyzers . | . . . . . . . . . Garrison Access . | . . . . . . . . . Terminal Hacks 20 | . 7 . 5 . 1 2 3 2 Record 1 | . . . . . 1 . . . Robot Analysis 3 | . . . 2 . . 1 . . Prototype ID Bank 5 | . 3 . 2 . . . . . Alert Level 1 | . . . . . . . 1 . Unreport Threat 1 | . . . . . . . 1 . Locate Traps 3 | . 3 . . . . . . . Dispatch Records 1 | . . . . . . 1 . . Transport Status 1 | . . . . . . . . 1 Recall Investigation 1 | . 1 . . . . . . . Hauler Manifests 1 | . . . . . . . . 1 Zone Layout 2 | . . . 1 . . . 1 . Fabricator Hacks . | . . . . . . . . . Repair Station Hacks . | . . . . . . . . . Recycling Unit Hacks . | . . . . . . . . . Scanalyzer . | . . . . . . . . . Garrison Access Hacks . | . . . . . . . . . Unauthorized Hacks 3 | . 1 . 1 . . . . 1 Terminals 3 | . 1 . 1 . . . . 1 Track 1 | . . . . . . . . 1 Botnet 2 | . 1 . 1 . . . . . Fabricators . | . . . . . . . . . Repair Stations . | . . . . . . . . . Recycling Units . | . . . . . . . . . Scanalyzers . | . . . . . . . . . Garrison Access . | . . . . . . . . . Data Cores Recovered . | . . . . . . . . . Used . | . . . . . . . . . Hacking Detections 10 | . 2 . 5 . . . 2 1 Full Trace Events 1 | . . . . . . . 1 . Feedback Events . | . . . . . . . . . Feedback Blocked . | . . . . . . . . . Robot Schematics Acquired . | . . . . . . . . . Robots Built . | . . . . . . . . . Authchips . | . . . . . . . . . Time . | . . . . . . . . . Total Robot Build Rating . | . . . . . . . . . Part Schematics Acquired . | . . . . . . . . . Parts Built . | . . . . . . . . . Authchips . | . . . . . . . . . Time . | . . . . . . . . . Total Part Build Rating . | . . . . . . . . . Parts Repaired . | . . . . . . . . . Time . | . . . . . . . . . Parts Recycled . | . . . . . . . . . Recycled Matter . | . . . . . . . . . Retrieved Matter . | . . . . . . . . . Retrieved Components . | . . . . . . . . . Parts Scanalyzed . | . . . . . . . . . Part Schematics Acquired . | . . . . . . . . . Parts Damaged . | . . . . . . . . . Bothacking | -11 -10 -10 -9 -9 -9 -8 -8 -7 ------------ Run | Jun Mat Min Mat Min Exi Min Mat Fac Used RIF Installer . | . . . . . . . . . Robots Hacked . | . . . . . . . . . Non-combat . | . . . . . . . . . Combat . | . . . . . . . . . Robot Hacks Applied . | . . . . . . . . . Relay Couplers Released . | . . . . . . . . . Fabnet Peak Effective % . | . . . . . . . . . Robots Rewired . | . . . . . . . . . Allies Hacked . | . . . . . . . . . Hacks Repelled . | . . . . . . . . . Allies | -11 -10 -10 -9 -9 -9 -8 -8 -7 -------- Run | Jun Mat Min Mat Min Exi Min Mat Fac Total Allies 3 | . . . . 3 . . . . Largest Group 3 | . . . . 3 3 3 . . Highest-Rated Group 40 | . . . . 40 40 40 . . Highest-Rated Ally 16 | . . . . 16 16 16 . . Total Orders . | . . . . . . . . . Ally Attacks 32 | . . . . . . 32 . . Total Damage 263 | . . . . . . 263 . . Kills 8 | . . . . . . 8 . . Allies Corrupted . | . . . . . . . . . Allies Melted . | . . . . . . . . . Intel | -11 -10 -10 -9 -9 -9 -8 -8 -7 ------- Run | Jun Mat Min Mat Min Exi Min Mat Fac Robot Analysis Total 3 | . . . 2 . . 1 . . Derelict Logs Recovered 3 | . . 2 . 1 . . . . Drone Launches . | . . . . . . . . . Drone Recoveries . | . . . . . . . . . Exploration | -11 -10 -10 -9 -9 -9 -8 -8 -7 ------------- Run | Jun Mat Min Mat Min Exi Min Mat Fac Turns Passed 11129 | 149 1415 1483 2461 1706 332 1788 922 873 Spaces Moved 4843 | 57 786 813 1102 706 139 684 262 294 Core 10 | 5 . . . . . . . 5 Treads 3861 | . . 679 1102 706 139 684 262 289 Legs 741 | 52 689 . . . . . . . Wheels 231 | . 97 134 . . . . . . Hover . | . . . . . . . . . Flight . | . . . . . . . . . Fastest Speed 50 | 50 100 100 160 240 240 240 240 50 Average Speed 197 | 113 159 150 183 240 240 240 240 236 Slowest Speed 240 | 120 190 160 240 240 240 240 240 240 Overloaded Moves . | . . . . . . . . . Propulsion Burnouts . | . . . . . . . . . Robots Hopped . | . . . . . . . . . Cave-ins Triggered . | . . . . . . . . . Exploration Rate (%) 65 | 4 96 99 96 100 51 98 36 8 Regions Visited 8 Branch Regions 4 Pre-discovered Areas 3 | . . 2 . . 1 . . . Known Exits Taken . | . . . . . . . . . Unknown Exits Taken 8 | 1 1 1 1 1 1 1 1 . Scrap Searched 5 | . . 1 . 3 . 1 . . Spaces Dug 7 | . . 7 . . . . . . Terrain Destroyed 114 | . . 15 24 . . . 41 34 Melee . | . . . . . . . . . Projectile . | . . . . . . . . . AOE 114 | . . 15 24 . . . 41 34 Terrain Rammed . | . . . . . . . . . Walls Destroyed . | . . . . . . . . . Machines Disabled . | . . . . . . . . . Actions | -11 -10 -10 -9 -9 -9 -8 -8 -7 --------- Run | Jun Mat Min Mat Min Exi Min Mat Fac Total 5819 | 94 883 998 1389 718 138 774 424 401 Wait 412 | . 9 142 142 8 . 58 49 4 Move 4835 | 56 785 812 1101 705 138 683 261 294 Hop . | . . . . . . . . . Pick Up 53 | 6 19 1 19 1 . 1 1 5 Fast Attach 29 | 7 7 1 6 . . . 4 4 Attach 19 | . 1 . 6 . . 2 5 5 Detach 5 | . 1 . 4 . . . . . Swap 47 | 1 5 3 7 1 . 1 17 12 Drop 61 | . 20 2 14 2 . . 9 14 Fire 356 | 24 36 37 90 1 . 27 78 63 Melee . | . . . . . . . . . Ram . | . . . . . . . . . Kick . | . . . . . . . . . Crush 2 | . . . . . . 2 . . Escape Stasis . | . . . . . . . . . Rewire . | . . . . . . . . . Trap . | . . . . . . . . . Miscellaneous . | . . . . . . . . . Route ------- -11/Junkyard -10/Materials (discovered 4 exits: *Mat x3 / [*Min]) -10/Mines (discovered 2 exits: *Mat x2) -9/Materials (discovered 5 exits: *Mat x3 / [*Min] / [*Sto]) -9/Mines (discovered 3 exits: *Mat x2 / *Exi) -9/Exiles -8/Mines (discovered 2 exits: *Mat x2) -8/Materials -7/Factory (discovered 2 exits: [*Fac] / [*Low]) History --------- Turn | Location | Event 4 | -11/Junkyard | Discovered new exit (range 16) 150 | -11/Junkyard | Entered Materials 226 | -10/Materials | Discovered new exit (range 4) 328 | -10/Materials | Build established: Mutant 932 | -10/Materials | Discovered new exit (range 16) 1098 | -10/Materials | Discovered new exit (range 5) 1248 | -10/Materials | Discovered new exit (range 14) 1565 | -10/Materials | Entered Mines 1588 | -10/Mines | Discovered new exit (range 6) 1608 | -10/Mines | Met a Derelict bent on vengeance 1772 | -10/Mines | Found a damaged Exp. Sensor Array with a note attached 1774 | -10/Mines | Found Prototype Device 1858 | -10/Mines | Discovered new exit (range 6) 1996 | -10/Mines | Learned location of Storage (-9) 2534 | -10/Mines | Excavation squad dispatched 2534 | -10/Mines | A large section of the Mines collapsed 2728 | -10/Mines | Core integrity fell below 50% 3048 | -10/Mines | Entered Materials 3048 | -9/Materials | Evolved 2 slots: Propulsion x1, Utility x1 3067 | -9/Materials | Identified Exp. Sensor Array 3673 | -9/Materials | Discovered new exit (range 15) 4002 | -9/Materials | Central database locked down 4239 | -9/Materials | Discovered new exit (range 16) 4578 | -9/Materials | Discovered new exit (range 7) 4618 | -9/Materials | Discovered new exit (range 13) 5007 | -9/Materials | Discovered new exit (range 15) 5509 | -9/Materials | Entered Mines 5519 | -9/Mines | Assisted by bots powering up and referring to "LRC-V3" 5555 | -9/Mines | Discovered new exit (range 10) 6177 | -9/Mines | A weapon hastily lodged in a ceiling crevice suddenly fell to the ground 6322 | -9/Mines | Learned Materials garrison access intel 6361 | -9/Mines | Discovered new exit (range 7) 6393 | -9/Mines | Deemed a non-threat by the Exiles lab entrance 6393 | -9/Mines | Discovered new exit (range 5) 7215 | -9/Mines | Entered Exiles 7215 | -9/Exiles | Accompanied by 3 allies 7275 | -9/Exiles | Met 8R-AWN 7311 | -9/Exiles | Met EX-HEX 7379 | -9/Exiles | Met EX-BIN 7410 | -9/Exiles | Met EX-DEC 7419 | -9/Exiles | Learned location of Zion (-6) 7506 | -9/Exiles | Discovered new exit (range 14) 7547 | -9/Exiles | Entered Mines 7547 | -8/Mines | Accompanied by 3 allies 7896 | -8/Mines | Discovered new exit (range 4) 8949 | -8/Mines | Discovered new exit (range 16) 9335 | -8/Mines | Entered Materials 9335 | -8/Materials | Evolved 2 slots: Propulsion x1, Utility x1 9336 | -8/Materials | Loaded intel: 1 garrison access location 9377 | -8/Materials | Garrison activated, responded to threat 9690 | -8/Materials | Build established: Scavenger-Mutant 10025 | -8/Materials | Discovered new exit (range 5) 10257 | -8/Materials | Entered Factory 10257 | -7/Factory | Evolved 2 slots: Utility x2 10647 | -7/Factory | Discovered new exit (range 6) 10979 | -7/Factory | Discovered new exit (range 14) 11102 | -7/Factory | Cargo convoy interrupted 11125 | -7/Factory | Core integrity fell below 50% 11126 | -7/Factory | System corruption reached 10% 11129 | -7/Factory | Core integrity fell below 20% 11130 | -7/Factory | Destroyed by X-57 Shotgunner with Shotgun Last Messages --------------- 11124_ Penetrated by Slug. 11124_ U-05 Engineer lays Concrete. 11125_ Missile Launcher destroyed. 11125_ M-28 Smith repairs Aluminum Leg. 11125_ Penetrated by Slug. 11125_ U-05 Engineer lays Concrete. 11125_ X-62 Marksman destroyed. 11125_ M-28 Smith destroyed. 11125_ Pressure Siphon disabled. 11126_ Penetrated by Slug. 11127_ Missile Launcher destroyed. 11127_ Penetrated by Slug. 11127_ U-05 Engineer lays Concrete. 11127_ Dropped Huge Storage Unit. 11128_ The unstable cave ceiling collapses. 11128_ Plasma Cutter crushed. 11128_ U-05 Engineer lays Concrete. 11130_ Slug penetrates Megafabricator. 11130_ Critical hit (Burn: +37). 11130_ U-05 Engineer lays Concrete. Map ----- +----------------------------------------------------+ | ?????????????????????????????????????????????????? | | ?????????????????????????????????????????????????? | | ?????????????????????????????????????????????????? | | ?????????????????????????????????????????????????? | | ?????????????????????????????????????????????????? | | ?????????????????????????????????????????????????? | | ????????????????????##???????????????????????????? | | ???????????????? ??? #??????????????????????????? | | ?????????????? ??? #??????????????????????????? | | ??????????????" ?" #??????????????????????????? | | ?????????????"" ?" #??????????????????????????? | | ????????????""" T" #??????????????????????????? | | ????????????? "" #??????????????????????????? | | ???????????"""" "" #??????????????????????????? | | ?????????? """" #??????????????????????????? | | ?????????? """" ###????????????????????????? | | ??????????? % % ""#???????????""???????????? | | ????????"" """ Y"#?????????? ???????????? | | ????? """" """" a x ""????????? ??????????? | | ???? " """"* gp![=###??????? ??????????? | | ??? ! %%!%*!= ####??? "??????????? | | ??? % =%g=!!=[ ##?= S???????????? | | ??? % u =rh!/=[# !!# "???????????? | | ????# ######### g ![[ ]= ???????????? | | ??????????????# hg = ![][ ######??????????????? | | ??????????????# @[%[=[u t????????? | | ??????????????# ! [][]]! ????????? | | ??????????????# " ![ """ """""??????????? | | ??????????????# """"u" """""" "??????????????? | | ??????????????# """"" """""" ???????????????? | | ??????????????# """""" """"""????????????????? | | ??????????????# """""" """"""????????????????? | | ??????????????# ^ """""" """"??????????????????? | | ??????????????# """""" """"??????????????????? | | ??????????????# """""" """""?????????????????? | | ??????????????# """""" """""" "??????????????? | | ??????????????# ?????????????? | | ??????????????# ?????????????? | | ??????????????# ????????????? | | ?????# ###### ????????????? | | ?????? < ????????????? | | ?????# ####### ######+#####???????????????? | | ???????????????# #??????????????????????????? | | ???????????????# +??????????????????????????? | | ???????????????# ##??????????????????????????? | | ???????????????# #???????????????????????????? | | ?????????####### #???????????????????????????? | | ?????????+ #???????????????????????????? | | ?????????# ######??????????????????????????? | | ########## # #??????????????????????????? | +----------------------------------------------------+ Best States ------------- Heat Dissipation 62 Energy Generation 16 Energy Capacity 290 Matter Stores 300 Matter Capacity 300 Sight Range 16 Terrain Scan Range 16 Terrain Scan Density 10 Armor Coverage 300 Evasion (%) 55 Recoil Reduction 4 Offensive Hacking 20 Item Schematics ----------------- None Robot Schematics ------------------ None Fabricated ------------ Nothing Alien Tech Used ----------------- None Achievements -------------- None Challenges ------------ None Game ------ Seed LaserHeartCharge Manual? 0 Play Time 00:52:20 Cumulative 644.4 hours Start 2023.04.13 @ 09:17:48 End 2023.04.20 @ 15:22:23 Sessions 3 Manual Loads 0 Difficulty Rogue Special Mode None Game No. 652 Rogue 651 Adventurer 0 Explorer 1 Win Type - Total 31 Types 22/0/6/3/0/0/0/0/0 Lore% 87 Gallery% 92 Achievement% 79 Wizard Run 0 Options --------- ASCII 0 Keyboard 1 Movement Vi Keybinds 0 Fullscreen 1 Font 18/SmallcapsGlow Map View 76x50 Tactical HUD 1 Map Filters NONE Filters NONE Steam 1 RUN: 47e67d0b-e512-4dd2-b411-cd77eac47c10